[Event "23rd Hoogeveen Open 2019"]
[Site "Hoogeveen"]
[Date "2019.10.20"]
[Round "2.3"]
[White "Werle, Jan"]
[Black "De Jong, Migchiel"]
[Result "1/2-1/2"]
[ECO "A40"]
[WhiteElo "2544"]
[BlackElo "2330"]
[Annotator "ChessBase"]
[PlyCount "83"]
[EventDate "2019.10.19"]
[EventType "swiss"]
[EventCountry "NED"]
[SourceTitle "playchess.com"]
[Source "ChessBase"]
[SourceQuality "1"]
[TimeControl "40/5400+30:1800+30"]

1. d4 {[%emt 0:00:00]} e6 {[%emt 0:00:01]} 2. c4 {[%emt 0:00:00]} Bb4+ {[%emt 0:00:28]} 3. Bd2 {[%emt 0:00:00]} a5 {[%emt 0:00:59]} 4. Nc3 {[%emt 0:00:00]} Nf6 {[%emt 0:02:04]} 5. e3 {[%emt 0:02:17]} O-O {[%emt 0:03:43]} 6. Nge2 {[%emt 0:03:44]} d5 {[%emt 0:01:34]} 7. a3 {[%emt 0:00:00]} Be7 {[%emt 0:00:46]} 8. cxd5 {[%emt 0:02:56]} exd5 {[%emt 0:04:22]} 9. Nf4 {[%emt 0:01:05]} c6 {[%emt 0:00:44]} 10. Bd3 {[%emt 0:00:16]} Re8 {[%emt 0:03:06]} 11. O-O {[%emt 0:00:47]} Bd6 {[%emt 0:01:02]} 12. Qc2 {[%emt 0:09:16]} Nbd7 {[%emt 0:02:51]} 13. Kh1 {[%emt 0:05:18]} Nf8 {[%emt 0:02:50]} 14. f3 {[%emt 0:02:26]} Be6 {[%emt 0:10:32]} 15. Nce2 {[%emt 0:10:45]} Rc8 {[%emt 0:02:31]} 16. Nxe6 {[%emt 0:13:31]} Nxe6 {[%emt 0:00:33]} 17. Be1 {[%emt 0:09:32]} c5 {[%emt 0:04:28]} 18. Qd2 {[%emt 0:00:30]} Bc7 {[%emt 0:04:16]} 19. Bf5 {[%emt 0:03:35]} cxd4 {[%emt 0:01:40]} 20. Nxd4 {[%emt 0:03:47]} Bb6 {[%emt 0:00:56]} 21. Rd1 {[%emt 0:02:40]} Rc4 {[%emt 0:06:40]} 22. Bd3 {[%emt 0:01:51]} Rc7 {[%emt 0:00:50]} 23. Bg3 {[%emt 0:01:21]} Rc8 {[%emt 0:01:11]} 24. Bb5 {[%emt 0:00:49]} Nxd4 {[%emt 0:00:35]} 25. exd4 {[%emt 0:01:35]} Re6 {[%emt 0:00:26]} 26. Rc1 {[%emt 0:02:23]} Rxc1 {[%emt 0:01:56]} 27. Rxc1 {[%emt 0:00:04]} h6 {[%emt 0:02:26]} 28. Bf2 {[%emt 0:04:43]} Ne8 {[%emt 0:02:15]} 29. Bd3 {[%emt 0:00:31]} Nd6 {[%emt 0:00:38]} 30. Qc3 {[%emt 0:04:08]} Qf6 {[%emt 0:04:10]} 31. Rd1 {[%emt 0:06:19]} g6 {[%emt 0:01:00]} 32. Bf1 {[%emt 0:02:32]} Ne4 {[%emt 0:03:36]} 33. Qc8+ {[%emt 0:00:37]} Kg7 {[%emt 0:00:09]} 34. Be1 {[%emt 0:04:02]} Ng5 {[%emt 0:01:59]} 35. Bh4 {[%emt 0:02:01]} Bxd4 {[%emt 0:12:31]} 36. Qxb7 {[%emt 0:00:02]} Bb6 {[%emt 0:00:02]} 37. Qc8 Bd4 {[%emt 0:00:29]} 38. Qb7 Qf4 {[%emt 0:00:04]} 39. Bg3 {[%emt 0:00:17]} Qe3 {[%emt 0:00:21]} 40. Bd3 {[%emt 0:00:02]} Nxf3 {[%emt 0:00:02]} 41. Qxd5 {[%emt 0:00:02]} Ne1 {[%emt 0:00:06]} 42. Qc6 {[%emt 0:00:17]} 1/2-1/2

[Event "23rd Hoogeveen Open 2019"]
[Site "Hoogeveen"]
[Date "2019.10.20"]
[Round "2.5"]
[White "Sindarov, Javokhir"]
[Black "Okkes, Menno"]
[Result "1-0"]
[ECO "B81"]
[WhiteElo "2513"]
[BlackElo "2326"]
[Annotator "ChessBase"]
[PlyCount "73"]
[EventDate "2019.10.19"]
[EventType "swiss"]
[EventCountry "NED"]
[SourceTitle "playchess.com"]
[Source "ChessBase"]
[SourceQuality "1"]
[TimeControl "40/5400+30:1800+30"]

1. e4 {[%emt 0:00:00]} c5 {[%emt 0:00:00]} 2. Nf3 {[%emt 0:00:00]} d6 {[%emt 0:00:00]} 3. d4 {[%emt 0:00:00]} cxd4 {[%emt 0:00:01]} 4. Nxd4 {[%emt 0:00:00]} Nf6 {[%emt 0:00:08]} 5. Nc3 {[%emt 0:00:07]} a6 {[%emt 0:00:14]} 6. h3 {[%emt 0:00:00]} e6 {[%emt 0:00:39]} 7. g4 {[%emt 0:00:00]} Be7 {[%emt 0:00:27]} 8. Bg2 {[%emt 0:00:00]} Nfd7 {[%emt 0:00:41]} 9. Be3 {[%emt 0:00:08]} Nc6 {[%emt 0:00:31]} 10. h4 {[%emt 0:00:20]} Nde5 {[%emt 0:09:44]} 11. g5 {[%emt 0:00:59]} Bd7 {[%emt 0:10:58]} 12. Nxc6 {[%emt 0:28:31]} bxc6 {[%emt 0:02:04]} 13. b3 {[%emt 0:09:38]} c5 {[%emt 0:02:16]} 14. f4 {[%emt 0:00:15]} Nc6 {[%emt 0:00:06]} 15. Ne2 {[%emt 0:00:20]} a5 {[%emt 0:07:15]} 16. O-O {[%emt 0:03:51]} h6 {[%emt 0:03:54]} 17. Qd2 {[%emt 0:01:31]} hxg5 {[%emt 0:00:40]} 18. hxg5 {[%emt 0:00:07]} a4 {[%emt 0:02:43]} 19. f5 {[%emt 0:18:00]} Ne5 {[%emt 0:05:28]} 20. Rad1 {[%emt 0:10:04]} Qa5 {[%emt 0:08:48]} 21. Nc3 {[%emt 0:05:02]} axb3 {[%emt 0:17:10]} 22. axb3 {[%emt 0:00:00]} c4 {[%emt 0:06:38]} 23. b4 {[%emt 0:08:37]} Qxb4 {[%emt 0:05:17]} 24. Rb1 {[%emt 0:00:56]} Qa5 {[%emt 0:00:44]} 25. Bb6 {[%emt 0:01:15]} Qa6 {[%emt 0:00:44]} 26. g6 {[%emt 0:04:52]} fxg6 {[%emt 0:06:33]} 27. fxe6 {[%emt 0:00:05]} Bxe6 {[%emt 0:00:05]} 28. Nd5 {[%emt 0:00:01]} Rc8 {[%emt 0:03:20]} 29. Nxe7 {[%emt 0:01:38]} Kxe7 {[%emt 0:00:02]} 30. Rfd1 {[%emt 0:00:09]} Rc6 {[%emt 0:00:57]} 31. Qg5+ {[%emt 0:00:52]} Ke8 {[%emt 0:03:18]} 32. Qd8+ {[%emt 0:00:30]} Kf7 {[%emt 0:00:05]} 33. Rf1+ {[%emt 0:00:06]} Bf5 {[%emt 0:00:06]} 34. Qxh8 {[%emt 0:00:08]} Rxb6 {[%emt 0:00:45]} 35. exf5 {[%emt 0:00:36]} Rxb1 {[%emt 0:00:51]} 36. Bd5+ {[%emt 0:00:27]} Kf6 {[%emt 0:00:38]} 37. Qd8# {[%emt 0:00:29] Ke7} 1-0

[Event "23rd Hoogeveen Open 2019"]
[Site "Hoogeveen"]
[Date "2019.10.20"]
[Round "2.6"]
[White "Elgersma, Onno"]
[Black "Schoppen, Casper"]
[Result "0-1"]
[ECO "B31"]
[WhiteElo "2306"]
[BlackElo "2508"]
[Annotator "ChessBase"]
[PlyCount "110"]
[EventDate "2019.10.19"]
[EventType "swiss"]
[EventCountry "NED"]
[SourceTitle "playchess.com"]
[Source "ChessBase"]
[SourceQuality "1"]
[TimeControl "40/5400+30:1800+30"]

1. e4 {[%emt 0:00:00]} c5 {[%emt 0:00:00]} 2. Nf3 {[%emt 0:00:00]} Nc6 {[%emt 0:00:00]} 3. Bb5 {[%emt 0:00:00]} g6 {[%emt 0:00:32]} 4. O-O {[%emt 0:00:00]} Bg7 {[%emt 0:00:05]} 5. c3 {[%emt 0:00:00]} e5 {[%emt 0:06:15]} 6. d4 {[%emt 0:07:36]} cxd4 {[%emt 0:01:50]} 7. cxd4 {[%emt 0:00:02]} exd4 {[%emt 0:00:38]} 8. Bf4 {[%emt 0:01:24]} Nge7 {[%emt 0:15:09]} 9. Bd6 {[%emt 0:07:23]} O-O {[%emt 0:00:27]} 10. Nbd2 {[%emt 0:00:56]} a6 {[%emt 0:01:26]} 11. Bc4 {[%emt 0:02:59]} b5 {[%emt 0:02:10]} 12. Bd5 {[%emt 0:03:18]} Nxd5 {[%emt 0:11:48]} 13. Bxf8 {[%emt 0:05:04]} Qxf8 {[%emt 0:00:56]} 14. exd5 {[%emt 0:00:05]} Ne7 {[%emt 0:05:09]} 15. Nb3 {[%emt 0:04:28]} Bb7 {[%emt 0:01:12]} 16. Re1 {[%emt 0:09:47]} Bxd5 {[%emt 0:04:27]} 17. Nfxd4 {[%emt 0:04:04]} Nc6 {[%emt 0:02:18]} 18. Nf3 {[%emt 0:05:43]} Be6 {[%emt 0:02:40]} 19. Nbd4 {[%emt 0:03:21]} Bd5 {[%emt 0:03:24]} 20. Nc2 {[%emt 0:03:20]} Be6 {[%emt 0:06:26]} 21. Nfd4 {[%emt 0:04:53]} Bc4 {[%emt 0:01:07]} 22. b3 {[%emt 0:01:07]} Nxd4 {[%emt 0:06:26]} 23. Nxd4 {[%emt 0:01:44]} Qc5 {[%emt 0:01:00]} 24. bxc4 {[%emt 0:01:04]} Bxd4 {[%emt 0:00:17]} 25. Qf3 {[%emt 0:00:07]} Rd8 {[%emt 0:05:48]} 26. Rad1 {[%emt 0:04:48]} bxc4 {[%emt 0:01:25]} 27. Qf4 {[%emt 0:11:46]} Bg7 {[%emt 0:04:08]} 28. Re4 {[%emt 0:01:02]} c3 {[%emt 0:01:53]} 29. Rc4 {[%emt 0:00:14]} Qe7 {[%emt 0:02:07]} 30. Re4 {[%emt 0:04:10]} Qf8 {[%emt 0:03:24]} 31. Rc4 {[%emt 0:04:50]} d5 {[%emt 0:02:25]} 32. Qc7 {[%emt 0:00:39]} Re8 {[%emt 0:02:47]} 33. Rxc3 {[%emt 0:06:41]} Bxc3 {[%emt 0:01:01]} 34. Qxc3 {[%emt 0:00:03]} Qd6 {[%emt 0:00:32]} 35. Qd4 {[%emt 0:00:51]} Re2 {[%emt 0:01:47]} 36. a4 {[%emt 0:02:39]} Qe6 {[%emt 0:00:51]} 37. h3 {[%emt 0:01:43]} Re1+ {[%emt 0:02:04]} 38. Rxe1 {[%emt 0:00:02]} Qxe1+ {[%emt 0:00:08]} 39. Kh2 {[%emt 0:00:02]} Qe4 {[%emt 0:01:49]} 40. Qa7 {[%emt 0:01:30]} Qf4+ {[%emt 0:01:09]} 41. g3 {[%emt 0:02:51]} Qf6 {[%emt 0:06:32]} 42. Kg2 {[%emt 0:03:35]} d4 {[%emt 0:01:25]} 43. Qa8+ {[%emt 0:00:29]} Kg7 {[%emt 0:00:08]} 44. Qd5 {[%emt 0:00:07]} h5 {[%emt 0:01:29]} 45. a5 {[%emt 0:01:49]} h4 {[%emt 0:01:41]} 46. f4 {[%emt 0:06:57]} Kh7 {[%emt 0:02:34]} 47. Kf2 {[%emt 0:08:58]} hxg3+ {[%emt 0:01:13]} 48. Kxg3 {[%emt 0:00:10]} Qe7 {[%emt 0:01:22]} 49. h4 {[%emt 0:03:32]} Qe3+ {[%emt 0:01:21]} 50. Qf3 {[%emt 0:01:18]} Qc3 {[%emt 0:06:48]} 51. Kf2 {[%emt 0:01:32]} Qxa5 {[%emt 0:00:40]} 52. Qb7 {[%emt 0:00:22]} Qd2+ {[%emt 0:01:25]} 53. Kf3 {[%emt 0:00:50]} Qe3+ {[%emt 0:00:18]} 54. Kg4 {[%emt 0:00:37]} Qe6+ {[%emt 0:00:17]} 55. Kg3 {[%emt 0:00:23]} d3 {[%emt 0:00:28]} 0-1

[Event "23rd Hoogeveen Open 2019"]
[Site "Hoogeveen"]
[Date "2019.10.20"]
[Round "2.7"]
[White "Vrolijk, Liam"]
[Black "Bhambure, Shantanu"]
[Result "1/2-1/2"]
[ECO "E36"]
[WhiteElo "2478"]
[BlackElo "2291"]
[Annotator "ChessBase"]
[PlyCount "113"]
[EventDate "2019.10.19"]
[EventType "swiss"]
[EventCountry "NED"]
[SourceTitle "playchess.com"]
[Source "ChessBase"]
[SourceQuality "1"]
[TimeControl "40/5400+30:1800+30"]

1. c4 {[%emt 0:00:00]} e6 {[%emt 0:01:50]} 2. Nc3 {[%emt 0:00:19]} Bb4 {[%emt 0:01:41]} 3. Nf3 {[%emt 0:02:09]} Nf6 {[%emt 0:01:47]} 4. Qc2 {[%emt 0:00:14]} d5 {[%emt 0:08:20]} 5. a3 {[%emt 0:06:03]} Be7 {[%emt 0:06:29]} 6. d4 {[%emt 0:04:24]} a6 {[%emt 0:02:39]} 7. cxd5 {[%emt 0:05:04]} exd5 {[%emt 0:00:25]} 8. Bg5 {[%emt 0:00:34]} Nbd7 {[%emt 0:04:46]} 9. e3 {[%emt 0:03:07]} O-O {[%emt 0:04:21]} 10. Bd3 {[%emt 0:01:29]} Re8 {[%emt 0:04:17]} 11. O-O {[%emt 0:02:44]} c6 {[%emt 0:01:40]} 12. h3 {[%emt 0:04:36]} Nf8 {[%emt 0:06:01]} 13. Ne5 {[%emt 0:06:58]} Nh5 {[%emt 0:07:08]} 14. Bxe7 {[%emt 0:03:36]} Qxe7 {[%emt 0:00:07]} 15. Rfe1 {[%emt 0:10:03]} Nf6 {[%emt 0:03:35]} 16. f4 {[%emt 0:04:31]} Ne4 {[%emt 0:06:11]} 17. Nxe4 {[%emt 0:12:04]} dxe4 {[%emt 0:00:07]} 18. Bc4 {[%emt 0:00:27]} Be6 {[%emt 0:00:46]} 19. Bxe6 {[%emt 0:01:44]} Qxe6 {[%emt 0:01:08]} 20. f5 {[%emt 0:00:22]} Qd5 {[%emt 0:06:53]} 21. Rf1 {[%emt 0:02:38]} f6 {[%emt 0:02:23]} 22. Nc4 {[%emt 0:01:05]} Nd7 {[%emt 0:01:08]} 23. b4 {[%emt 0:00:55]} Re7 {[%emt 0:03:40]} 24. Rac1 {[%emt 0:03:02]} Rd8 {[%emt 0:04:39]} 25. Rf4 {[%emt 0:01:37]} Kh8 {[%emt 0:03:22]} 26. Rf2 {[%emt 0:03:56]} h6 {[%emt 0:01:18]} 27. Na5 {[%emt 0:00:48]} Nb6 {[%emt 0:02:33]} 28. Qc5 {[%emt 0:02:01]} Nc8 {[%emt 0:01:05]} 29. Rf4 {[%emt 0:03:21]} Qa2 {[%emt 0:06:04]} 30. Qc3 {[%emt 0:03:07]} Nb6 {[%emt 0:02:05]} 31. Rf2 {[%emt 0:00:22]} Qf7 {[%emt 0:00:53]} 32. Nb3 {[%emt 0:01:25]} Nd5 {[%emt 0:00:37]} 33. Qd2 {[%emt 0:00:08]} Qh5 {[%emt 0:02:08]} 34. Nc5 {[%emt 0:01:19]} Rde8 {[%emt 0:01:55]} 35. Re1 {[%emt 0:02:26]} Qf7 {[%emt 0:00:35]} 36. Kh2 {[%emt 0:01:41]} Ra8 {[%emt 0:01:04]} 37. Qc2 {[%emt 0:01:49]} Qe8 {[%emt 0:01:57]} 38. Kg1 {[%emt 0:01:31]} a5 {[%emt 0:00:43]} 39. bxa5 {[%emt 0:02:22]} Rxa5 {[%emt 0:00:05]} 40. a4 {[%emt 0:01:05]} Qa8 {[%emt 0:00:58]} 41. Ne6 {[%emt 0:32:47]} Rxa4 {[%emt 0:30:30]} 42. Qxe4 {[%emt 0:00:25]} Qa5 {[%emt 0:00:36]} 43. Qb1 {[%emt 0:00:00]} Nc3 {[%emt 0:00:00]} 44. Qc1 {[%emt 0:00:00]} Ne4 {[%emt 0:00:00]} 45. Rf4 {[%emt 0:00:00]} Rc4 {[%emt 0:00:00]} 46. Qd1 {[%emt 0:00:00]} Ng5 {[%emt 0:00:00]} 47. Nxg5 {[%emt 0:00:00]} hxg5 {[%emt 0:00:00]} 48. Rff1 {[%emt 0:00:00]} Qc3 {[%emt 0:00:00]} 49. Kh1 {[%emt 0:00:00]} Kg8 {[%emt 0:00:44]} 50. d5 {[%emt 0:00:00]} Qe5 {[%emt 0:01:29]} 51. dxc6 {[%emt 0:00:44]} Rxc6 {[%emt 0:00:15]} 52. Qd4 {[%emt 0:01:55]} Qxd4 {[%emt 0:00:40]} 53. exd4 {[%emt 0:00:07]} Rd7 {[%emt 0:01:10]} 54. Re8+ {[%emt 0:00:15]} Kh7 {[%emt 0:01:17]} 55. Rb1 {[%emt 0:00:22]} Rcd6 {[%emt 0:01:02]} 56. Rb8 {[%emt 0:00:22]} Rxd4 {[%emt 0:00:02]} 57. R8xb7 {[%emt 0:00:07]} 1/2-1/2

[Event "23rd Hoogeveen Open 2019"]
[Site "Hoogeveen"]
[Date "2019.10.20"]
[Round "2.8"]
[White "Grooten, Herman"]
[Black "Beerdsen, Thomas"]
[Result "0-1"]
[ECO "E17"]
[WhiteElo "2274"]
[BlackElo "2472"]
[Annotator "ChessBase"]
[PlyCount "94"]
[EventDate "2019.10.19"]
[EventType "swiss"]
[EventCountry "NED"]
[SourceTitle "playchess.com"]
[Source "ChessBase"]
[SourceQuality "1"]
[TimeControl "40/5400+30:1800+30"]

1. d4 {[%emt 0:01:16]} Nf6 {[%emt 0:00:00]} 2. c4 {[%emt 0:00:06]} e6 {[%emt 0:00:00]} 3. Nf3 {[%emt 0:00:07]} b6 {[%emt 0:00:00]} 4. g3 {[%emt 0:00:18]} Bb7 {[%emt 0:00:00]} 5. Bg2 {[%emt 0:00:10]} Be7 {[%emt 0:00:02]} 6. O-O {[%emt 0:00:24]} O-O {[%emt 0:00:07]} 7. Re1 {[%emt 0:01:31]} Na6 {[%emt 0:00:07]} 8. a3 {[%emt 0:00:34]} c5 {[%emt 0:01:34]} 9. d5 {[%emt 0:02:25]} exd5 {[%emt 0:04:00]} 10. Nh4 {[%emt 0:01:11]} Nc7 {[%emt 0:01:04]} 11. Nc3 {[%emt 0:02:35]} Ne4 {[%emt 0:18:07]} 12. Nxd5 {[%emt 0:09:34]} Nxd5 {[%emt 0:00:46]} 13. cxd5 {[%emt 0:01:02]} Bxh4 {[%emt 0:02:46]} 14. Bxe4 {[%emt 0:00:41]} Bf6 {[%emt 0:01:31]} 15. Qc2 {[%emt 0:03:10]} g6 {[%emt 0:03:51]} 16. Bd2 {[%emt 0:01:00]} Re8 {[%emt 0:01:14]} 17. Bg2 {[%emt 0:02:14]} d6 {[%emt 0:01:56]} 18. Bc3 {[%emt 0:01:22]} b5 {[%emt 0:02:12]} 19. e4 {[%emt 0:06:36]} a5 {[%emt 0:04:20]} 20. Bxf6 {[%emt 0:29:44]} Qxf6 {[%emt 0:00:46]} 21. Qc3 {[%emt 0:01:34]} Kg7 {[%emt 0:02:34]} 22. f4 {[%emt 0:02:01]} b4 {[%emt 0:02:41]} 23. Qd2 {[%emt 0:06:54]} Rab8 {[%emt 0:08:00]} 24. axb4 {[%emt 0:01:56]} axb4 {[%emt 0:01:07]} 25. Bf1 {[%emt 0:03:28]} Re7 {[%emt 0:09:14]} 26. Ra5 {[%emt 0:04:52]} Rbe8 {[%emt 0:05:57]} 27. Bg2 {[%emt 0:05:29]} Bc8 {[%emt 0:06:41]} 28. e5 {[%emt 0:02:48]} dxe5 {[%emt 0:01:30]} 29. d6 {[%emt 0:01:31]} Rd7 {[%emt 0:03:04]} 30. Rxc5 {[%emt 0:00:16]} Qxd6 {[%emt 0:04:44]} 31. Qxb4 {[%emt 0:02:26]} Rc7 {[%emt 0:02:43]} 32. Rc4 {[%emt 0:00:04]} Qxb4 {[%emt 0:00:34]} 33. Rxb4 {[%emt 0:00:05]} Rd8 {[%emt 0:07:01]} 34. fxe5 {[%emt 0:01:58]} Rd2 {[%emt 0:00:26]} 35. Be4 {[%emt 0:00:41]} Rc5 {[%emt 0:00:56]} 36. Bb1 {[%emt 0:01:39]} Bh3 {[%emt 0:00:34]} 37. Rh4 {[%emt 0:00:25]} Rg2+ {[%emt 0:02:35]} 38. Kh1 {[%emt 0:01:48]} Re2 {[%emt 0:00:06]} 39. Rd1 {[%emt 0:00:38]} Rd5 {[%emt 0:01:43]} 40. Rc1 {[%emt 0:01:07]} Bg2+ {[%emt 0:01:58]} 41. Kg1 {[%emt 0:30:34]} Rdd2 {[%emt 0:05:07]} 42. Ba2 {[%emt 0:00:00]} g5 {[%emt 0:02:50]} 43. Rg4 {[%emt 0:00:00]} Bh3 {[%emt 0:01:13]} 44. Rxg5+ {[%emt 0:00:00]} Kh6 {[%emt 0:00:06]} 45. Rg8 {[%emt 0:00:00]} Rg2+ {[%emt 0:00:05]} 46. Kf1 {[%emt 0:00:00]} Rxh2+ {[%emt 0:00:06]} 47. Ke1 {[%emt 0:00:00]} Rhe2# {[%emt 0:00:04]} 0-1

[Event "23rd Hoogeveen Open 2019"]
[Site "Hoogeveen"]
[Date "2019.10.20"]
[Round "2.9"]
[White "Akash, Ganesan"]
[Black "Van Dael, Siem"]
[Result "1-0"]
[ECO "B30"]
[WhiteElo "2449"]
[BlackElo "2273"]
[Annotator "NA"]
[PlyCount "81"]
[EventDate "2019.10.19"]
[EventType "swiss"]
[EventCountry "NED"]
[SourceTitle "playchess.com"]
[Source "ChessBase"]
[SourceQuality "1"]
[TimeControl "40/5400+30:1800+30"]

1. e4 {[%emt 0:00:00]} c5 {[%emt 0:00:00]} 2. Nf3 {[%emt 0:00:00]} Nc6 {[%emt 0:00:00]} 3. Nc3 {[%emt 0:00:06]} e5 {[%emt 0:00:00]} 4. Bc4 {[%emt 0:00:17]} g6 {[%emt 0:00:00]} 5. d3 {[%emt 0:01:47]} h6 {[%emt 0:00:07]} 6. Be3 {[%emt 0:05:28] B30: Sicilian: 2...Nc6 3 Bb5, lines without ...g6} (6. O-O Bg7 7. Ne1 Nge7 8. f4 d6 9. f5 gxf5 10. Qh5 Rf8 11. exf5 d5 12. Bb3 Bf6 13. Qxh6 Nxf5 14. Rxf5 Bxf5 15. Nxd5 {1-0 (62) Andreikin,D (2725)-Bacrot,E (2684) chess.com INT 2019}) 6... d6 {[%emt 0:00:41]} 7. h3 {[%emt 0:00:35]} Bg7 {[%emt 0:00:25]} 8. Nh2 {[%emt 0:01:08]} Nge7 $146 {[%emt 0:04:50]} ({Predecessor:} 8... Nd4 9. O-O Nf6 10. f4 O-O 11. fxe5 dxe5 12. Nd5 Nxd5 13. Bxd5 {1-0 (47) Juarez Flores,G (2275)-Reyes Najera,C Guatemala 1982}) 9. Qd2 {[%emt 0:05:54]} Nd4 {[%emt 0:06:36]} 10. f4 {[%emt 0:06:32]} Be6 {[%emt 0:05:42]} 11. Bxe6 {[%emt 0:04:39]} Nxe6 {[%emt 0:00:14]} 12. fxe5 {[%emt 0:01:15]} dxe5 {[%emt 0:14:08]} 13. O-O {[%emt 0:04:23]} f5 {[%emt 0:04:33]} 14. exf5 {[%emt 0:03:40]} gxf5 {[%emt 0:01:15]} 15. Rae1 {[%emt 0:02:00]} Qd7 {[%emt 0:01:45]} 16. Qf2 {[%emt 0:07:54]} b6 {[%emt 0:04:19]} 17. Qf3 {[%emt 0:04:38]} O-O {[%emt 0:04:55]} 18. Qh5 {[%emt 0:03:12]} f4 {[%emt 0:10:43]} 19. Bf2 $11 {[%emt 0:02:45]} Rf5 {[%emt 0:00:34]} 20. Qd1 {[%emt 0:04:03]} Raf8 {[%emt 0:02:10]} 21. Nf3 {[%emt 0:04:35]} Nd5 {[%emt 0:06:45]} 22. Ne4 {[%emt 0:05:30]} R5f7 {[%emt 0:05:15]} 23. c3 {[%emt 0:03:20]} Ne7 {[%emt 0:05:53]} 24. Qb3 {[%emt 0:02:47]} Nc6 {[%emt 0:01:07]} 25. Rd1 {[%emt 0:02:10]} Nc7 {[%emt 0:05:02]} 26. Rfe1 {[%emt 0:01:46]} Qd5 {[%emt 0:04:10]} 27. Qa4 {[%emt 0:04:16]} Kh8 {[%emt 0:02:25]} 28. a3 {[%emt 0:00:40]} a5 {[%emt 0:03:01]} 29. Qc2 {[%emt 0:03:22]} Ne6 {[%emt 0:01:00]} 30. a4 {[%emt 0:02:04]} Ne7 {[%emt 0:02:21]} 31. Ned2 {[%emt 0:01:14]} Ng5 {[%emt 0:00:56]} 32. Nxg5 {[%emt 0:02:17]} hxg5 {[%emt 0:00:05]} 33. Nf3 {[%emt 0:00:20]} Bf6 {[%emt 0:04:25]} 34. d4 {[%emt 0:00:49]} exd4 {[%emt 0:00:57]} 35. cxd4 {[%emt 0:00:10]} c4 {[%emt 0:00:38]} 36. Re5 {[%emt 0:02:58]} Qb7 {[%emt 0:00:11]} 37. Rb5 {[%emt 0:03:56]} Nd5 {[%emt 0:00:44]} 38. Re1 {[%emt 0:02:42]} Rg7 {[%emt 0:00:33]} 39. Qxc4 {[%emt 0:01:26]} Ne3 {[%emt 0:00:27]} 40. Bxe3 {[%emt 0:01:11]} fxe3 {[%emt 0:00:05]} 41. Rxe3 {[%emt 0:30:31]} 1-0

[Event "23rd Hoogeveen Open 2019"]
[Site "Hoogeveen"]
[Date "2019.10.20"]
[Round "2.10"]
[White "Hilwerda, Jonas"]
[Black "Romanishin, Oleg M"]
[Result "1/2-1/2"]
[ECO "B46"]
[WhiteElo "2229"]
[BlackElo "2441"]
[Annotator "ChessBase"]
[PlyCount "25"]
[EventDate "2019.10.19"]
[EventType "swiss"]
[EventCountry "NED"]
[SourceTitle "playchess.com"]
[Source "ChessBase"]
[SourceQuality "1"]
[TimeControl "40/5400+30:1800+30"]

1. e4 {[%emt 0:00:00]} c5 {[%emt 0:00:30]} 2. Nf3 {[%emt 0:00:00]} e6 {[%emt 0:01:44]} 3. d4 {[%emt 0:00:00]} cxd4 {[%emt 0:00:04]} 4. Nxd4 {[%emt 0:00:00]} Nc6 {[%emt 0:00:05]} 5. Nc3 {[%emt 0:00:00]} a6 {[%emt 0:00:06]} 6. Nxc6 {[%emt 0:00:00]} bxc6 {[%emt 0:00:09]} 7. Bd3 {[%emt 0:00:03]} d5 {[%emt 0:00:17]} 8. O-O {[%emt 0:00:10]} Nf6 {[%emt 0:00:07]} 9. Qf3 {[%emt 0:01:07]} Be7 {[%emt 0:03:21]} 10. Qg3 {[%emt 0:00:29]} Nh5 {[%emt 0:06:36]} 11. Qf3 {[%emt 0:00:58]} Nf6 {[%emt 0:02:20]} 12. Qg3 {[%emt 0:02:23]} Nh5 {[%emt 0:00:58]} 13. Qf3 {[%emt 0:05:11]} 1/2-1/2